fUSD/lending_fUSD_20260513
["ID","MTS","AMOUNT","RATE_DAILY","PERIOD"]
[422164090,1778641839000,-1500.01703501,0.00013208,2]
[422164135,1778641839000,-854833.2394,0.00013209,2]
[422164126,1778641839000,-1493.76696403,0.00013208,2]
[422164128,1778641839000,-1493.76696403,0.00013208,2]
[422164131,1778641839000,-1493.76696403,0.00013208,2]
[422164118,1778641839000,-1493.76696403,0.00013208,2]
[422164122,1778641839000,-1493.76696403,0.00013208,2]
[422164142,1778641839000,-15422.99108349,0.00013308,2]
[422164153,1778641839000,-500.0,0.00013481,2]
[422164144,1778641839000,-2697.33336735,0.00013365,2]
[422164155,1778641839000,-150.0,0.00013488,2]
[422164149,1778641839000,-160.0,0.00013395,2]
[422164146,1778641839000,-208.27114069,0.00013384,2]
[422164212,1778641839000,-500.0,0.00013698,2]
[422164100,1778641839000,-1500.01703501,0.00013208,2]
[422164220,1778641839000,-500.0,0.00013698,2]
[422164292,1778641839000,-15422.99108349,0.00014104,2]
[422164290,1778641839000,-12502.40711403,0.00014104,2]
[422164294,1778641839000,-166.66,0.0001411,2]
[422164296,1778641839000,-2697.33336735,0.00014132,2]
[422164300,1778641839000,-1680.0,0.0001418,2]
[422164298,1778641839000,-420.0,0.00014139,2]
[422164302,1778641839000,-2000.0,0.00014206,2]
[422164312,1778641839000,-15422.99108349,0.00014303,2]
[422164310,1778641839000,-507.19727056,0.00014303,2]
[422164304,1778641839000,-150.0,0.00014237,2]
[422164316,1778641839000,-309.26,0.00014321,2]
[422164307,1778641839000,-12502.40711403,0.00014303,2]
[422164314,1778641839000,-1245.26,0.00014319,2]
[422164280,1778641839000,-51923.55580954,0.0001399,2]
[422164305,1778641839000,-166.66,0.00014247,2]
[422164320,1778641839000,-2697.33336735,0.00014388,2]
[422164322,1778641839000,-165.77,0.00014399,2]
[422164325,1778641839000,-12502.40711403,0.00014502,2]
[422164327,1778641839000,-15422.99108349,0.00014502,2]
[422164329,1778641839000,-2697.33336735,0.00014644,2]
[422164331,1778641839000,-1245.26,0.00014668,2]
[422164343,1778641839000,-25000.0,0.00014865,3]
[422164339,1778641839000,-25000.0,0.00014856,3]
[422164335,1778641839000,-15422.99108349,0.00014701,2]
[422164337,1778641839000,-25000.0,0.00014847,3]
[422164333,1778641839000,-12502.40711403,0.00014701,2]
[422164341,1778641839000,-165.77,0.0001486,2]
[422164204,1778641839000,-527.2056154,0.00013698,2]
[422164318,1778641839000,-166.66,0.00014384,2]
[422164288,1778641839000,-500.0,0.00014029,2]
[422164124,1778641839000,-1493.76696403,0.00013208,2]
[422164284,1778641839000,-255.0,0.00014,2]
[422164276,1778641839000,-287.27,0.00013986,2]
[422164228,1778641839000,-500.0,0.00013698,2]
[422164226,1778641839000,-500.0,0.00013698,2]
[422164241,1778641839000,-15422.99108349,0.00013706,2]
[422164224,1778641839000,-500.0,0.00013698,2]
[422164235,1778641839000,-166.66,0.00013699,2]
[422164230,1778641839000,-507.77368398,0.00013698,2]
[422164239,1778641839000,-12502.40711403,0.00013705,2]
[422164237,1778641839000,-200.0,0.00013699,2]
[422164270,1778641839000,-1245.26,0.00013969,2]
[422164243,1778641839000,-500.0,0.00013755,2]
[422164251,1778641839000,-300.0,0.00013789,2]
[422164268,1778641839000,-165.77,0.00013939,2]
[422164262,1778641839000,-2697.33336735,0.00013877,2]
[422164222,1778641839000,-500.0,0.00013698,2]
[422164264,1778641839000,-12502.40711403,0.00013904,2]
[422164258,1778641839000,-300.0,0.00013789,2]
[422164278,1778641839000,-168.5,0.00013986,2]
[422164274,1778641839000,-172.88,0.00013986,2]
[422164286,1778641839000,-1018.70017636,0.00014005,2]
[422164272,1778641839000,-166.66,0.00013973,2]
[422164256,1778641839000,-600.0,0.00013789,2]
[422164282,1778641839000,-250.0,0.00014,2]
[422164259,1778641839000,-166.66,0.00013836,2]
[422164245,1778641839000,-300.0,0.00013789,2]
[422164254,1778641839000,-361.21427826,0.00013789,2]
[422164247,1778641839000,-300.0,0.00013789,2]
[422164249,1778641839000,-300.0,0.00013789,2]
[422164266,1778641839000,-15422.99108349,0.00013905,2]
[422164412,1778641840000,-151.0,0.00015,2]
[422164427,1778641840000,-151.0,0.00015,2]
[422164425,1778641840000,-151.0,0.00015,2]
[422164423,1778641840000,-151.0,0.00015,2]
[422164410,1778641840000,-151.0,0.00015,2]
[422164403,1778641840000,-1091.287909,0.00015,2]
[422164421,1778641840000,-333.861651,0.00015,2]
[422164419,1778641840000,-333.861651,0.00015,2]
[422164407,1778641840000,-1091.287909,0.00015,2]
[422164416,1778641840000,-333.861651,0.00015,2]
[422164429,1778641840000,-682.734439,0.00015,2]
[422164408,1778641840000,-1091.287909,0.00015,2]
[422164433,1778641840000,-682.734439,0.00015,2]
[422164446,1778641840000,-433.0,0.00015199,2]
[422164435,1778641840000,-682.734439,0.00015,2]
[422164439,1778641840000,-465.298313,0.00015068,2]
[422164445,1778641840000,-465.298313,0.00015068,2]
[422164449,1778641840000,-1517.64,0.000153,2]
[422164431,1778641840000,-682.734439,0.00015,2]
[422164443,1778641840000,-465.298313,0.00015068,2]
[422164441,1778641840000,-465.298313,0.00015068,2]
[422164454,1778641840000,-1236.76071067,0.000155,2]
[422164453,1778641840000,-1245.26,0.00015366,2]
[422164456,1778641840000,-587.0,0.00015507,2]
[422164462,1778641840000,-2000.0,0.00015784,2]
[422164468,1778641840000,-151.0,0.00015821,2]
[422164405,1778641840000,-1091.287909,0.00015,2]
[422164437,1778641840000,-1245.26,0.00015017,2]
[422164414,1778641840000,-333.861651,0.00015,2]
[422164374,1778641840000,-548.26245959,0.0001499,2]
[422164399,1778641840000,-427.6893788,0.00015,2]
[422164345,1778641840000,-25000.0,0.00014874,3]
[422164348,1778641840000,-25000.0,0.00014891,3]
[422164346,1778641840000,-25000.0,0.00014882,3]
[422164350,1778641840000,-809.34700527,0.000149,2]
[422164362,1778641840000,-2167.25807682,0.000149,2]
[422164364,1778641840000,-5649.72970626,0.000149,2]
[422164352,1778641840000,-1018.70017636,0.000149,2]
[422164366,1778641840000,-2697.33336735,0.000149,2]
[422164354,1778641840000,-25000.0,0.000149,3]
[422164370,1778641840000,-290.72811285,0.00014908,2]
[422164368,1778641840000,-534.94863067,0.000149,2]
[422164372,1778641840000,-150.00000001,0.00014986,2]
[422164356,1778641840000,-12502.40711403,0.000149,2]
[422164401,1778641840000,-151.0,0.00015,2]
[422164360,1778641840000,-15422.99108349,0.000149,2]
[422164472,1778641840000,-151.0,0.00015821,2]
[422164377,1778641840000,-500.0,0.00014999,2]
[422164379,1778641840000,-666.0,0.00014999,2]
[422164381,1778641840000,-300.0,0.00014999,2]
[422164383,1778641840000,-300.0,0.00014999,2]
[422164393,1778641840000,-2075.73057974,0.00015,2]
[422164376,1778641840000,-548.26245959,0.0001499,2]
[422164385,1778641840000,-300.0,0.00014999,2]
[422164387,1778641840000,-666.0,0.00014999,2]
[422164389,1778641840000,-2127027.95995744,0.00015,2]
[422164391,1778641840000,-743.4,0.00015,2]
[422164395,1778641840000,-3132.72436947,0.00015,2]
[422164397,1778641840000,-14218790.05890937,0.00015,2]
[422164358,1778641840000,-32961.67155862,0.000149,2]
[422164464,1778641840000,-668.215871,0.00015794,2]
[422164451,1778641840000,-165.77,0.0001532,2]
[422164480,1778641840000,-151.0,0.00015821,2]
[422164542,1778641840000,-10209.89761411,0.0001627,2]
[422164534,1778641840000,-185.72,0.00016135,2]
[422164549,1778641840000,-1214.457842,0.00016438,2]
[422164527,1778641840000,-299.99,0.00016116,4]
[422164540,1778641840000,-165.77,0.0001624,2]
[422164551,1778641840000,-1214.457842,0.00016438,2]
[422164547,1778641840000,-153.39,0.0001637,2]
[422164538,1778641840000,-158.33,0.00016206,2]
[422164545,1778641840000,-200.0,0.0001634,2]
[422164556,1778641840000,-1214.457842,0.00016438,2]
[422164553,1778641840000,-1214.457842,0.00016438,2]
[422164569,1778641840000,-1195.48,0.00016922,2]
[422164564,1778641840000,-184.57,0.00016712,2]
[422164529,1778641840000,-150.99,0.00016116,2]
[422164567,1778641840000,-6111.27,0.00016922,2]
[422164558,1778641840000,-2165.91072173,0.000165,2]
[422164560,1778641840000,-736.0,0.00016514,2]
[422164562,1778641840000,-156.48177233,0.00016637,2]
[422164573,1778641840000,-7879.38,0.00016922,2]
[422164576,1778641840000,-823.0,0.00017008,2]
[422164589,1778641840000,-1066.44,0.000179,2]
[422164591,1778641840000,-582.06260498,0.00017908,2]
[422164593,1778641840000,-28788.211335,0.0001792,2]
[422164580,1778641840000,-2000.0,0.00017363,2]
[422164476,1778641840000,-151.0,0.00015821,2]
[422164582,1778641840000,-570.38,0.00017534,2]
[422164585,1778641840000,-158.33,0.00017827,2]
[422164587,1778641840000,-1237.52753037,0.0001789,2]
[422164571,1778641840000,-4999.99,0.00016922,2]
[422164532,1778641840000,-999.99,0.00016116,2]
[422164578,1778641840000,-3292.0,0.00017158,2]
[422164525,1778641840000,-9999.99,0.00016116,2]
[422164536,1778641840000,-378.21736524,0.000162,2]
[422164460,1778641840000,-165.77,0.0001578,2]
[422164470,1778641840000,-151.0,0.00015821,2]
[422164477,1778641840000,-151.0,0.00015821,2]
[422164458,1778641840000,-2351.0,0.00015598,2]
[422164466,1778641840000,-2269.21898435,0.00015807,2]
[422164474,1778641840000,-151.0,0.00015821,2]
[422164485,1778641840000,-151.0,0.00015821,2]
[422164490,1778641840000,-151.0,0.00015821,2]
[422164492,1778641840000,-151.0,0.00015821,2]
[422164496,1778641840000,-151.0,0.00015821,2]
[422164483,1778641840000,-151.0,0.00015821,2]
[422164481,1778641840000,-151.0,0.00015821,2]
[422164486,1778641840000,-151.0,0.00015821,2]
[422164479,1778641840000,-151.0,0.00015821,2]
[422164498,1778641840000,-151.0,0.00015821,2]
[422164488,1778641840000,-151.0,0.00015821,2]
[422164523,1778641840000,-12594.41,0.00016116,2]
[422164518,1778641840000,-2800.50485724,0.0001611,15]
[422164516,1778641840000,-378.21736524,0.000161,2]
[422164503,1778641840000,-151.0,0.00015821,2]
[422164521,1778641840000,-5984.31,0.00016116,2]
[422164514,1778641840000,-378.21736524,0.00016,2]
[422164512,1778641840000,-300.0,0.00016,2]
[422164510,1778641840000,-8983.23305263,0.00015989,2]
[422164508,1778641840000,-150.8783364,0.000159,2]
[422164482,1778641840000,-151.0,0.00015821,2]
[422164494,1778641840000,-151.0,0.00015821,2]
[422164505,1778641840000,-187.70780286,0.000159,2]
[422164674,1778641841000,-500.0,0.00019178,2]
[422164669,1778641841000,-500.0,0.00019178,2]
[422164657,1778641841000,-500.0,0.00019178,2]
[422164667,1778641841000,-500.0,0.00019178,2]
[422164676,1778641841000,-500.0,0.00019178,2]
[422164678,1778641841000,-500.0,0.00019178,2]
[422164665,1778641841000,-500.0,0.00019178,2]
[422164663,1778641841000,-500.0,0.00019178,2]
[422164659,1778641841000,-500.0,0.00019178,2]
[422164672,1778641841000,-500.0,0.00019178,2]
[422164680,1778641841000,-500.0,0.00019178,2]
[422164661,1778641841000,-500.0,0.00019178,2]
[422164691,1778641841000,-500.0,0.00019178,2]
[422164689,1778641841000,-500.0,0.00019178,2]
[422164687,1778641841000,-500.0,0.00019178,2]
[422164696,1778641841000,-500.0,0.00019178,2]
[422164701,1778641841000,-500.0,0.00019178,2]
[422164694,1778641841000,-500.0,0.00019178,2]
[422164683,1778641841000,-500.0,0.00019178,2]
[422164698,1778641841000,-500.0,0.00019178,2]
[422164705,1778641841000,-500.0,0.00019178,2]
[422164703,1778641841000,-500.0,0.00019178,2]
[422164720,1778641841000,-500.0,0.00019178,2]
[422164650,1778641841000,-500.0,0.00019178,2]
[422164726,1778641841000,-500.0,0.00019178,2]
[422164685,1778641841000,-500.0,0.00019178,2]
[422164653,1778641841000,-500.0,0.00019178,2]
[422164611,1778641841000,-199.97476618,0.000182,2]
[422164648,1778641841000,-500.0,0.00019178,2]
[422164722,1778641841000,-500.0,0.00019178,2]
[422164595,1778641841000,-1252.0,0.00017932,2]
[422164600,1778641841000,-199.97476618,0.00018,2]
[422164598,1778641841000,-350.0,0.00018,2]
[422164602,1778641841000,-1205.78662741,0.00018,2]
[422164605,1778641841000,-1044.25976013,0.00018,2]
[422164615,1778641841000,-200.0,0.00018274,2]
[422164617,1778641841000,-176.672782,0.00018275,2]
[422164619,1778641841000,-199.97476618,0.000184,2]
[422164607,1778641841000,-927.55,0.00018049,2]
[422164621,1778641841000,-199.97476618,0.000185,2]
[422164609,1778641841000,-185.72,0.00018151,2]
[422164613,1778641841000,-743.4,0.000182,2]
[422164623,1778641841000,-750.0,0.00018565,2]
[422164626,1778641841000,-150.0,0.00018565,7]
[422164628,1778641841000,-1152.0,0.00018654,2]
[422164630,1778641841000,-199.97476618,0.000187,2]
[422164632,1778641841000,-451.706312,0.00018794,2]
[422164634,1778641841000,-4609.0,0.00018874,2]
[422164642,1778641841000,-363.77073856,0.0001901,7]
[422164640,1778641841000,-4190.0,0.00019,2]
[422164636,1778641841000,-570.38,0.00018904,2]
[422164646,1778641841000,-500.0,0.00019178,2]
[422164644,1778641841000,-3000.0,0.00019178,2]
[422164638,1778641841000,-2000.0,0.00018941,2]
[422164655,1778641841000,-500.0,0.00019178,2]
[422164718,1778641841000,-500.0,0.00019178,2]
[422164808,1778641841000,-509.61826119,0.00020526,2]
[422164712,1778641841000,-500.0,0.00019178,2]
[422164788,1778641841000,-200.0,0.0002,2]
[422164786,1778641841000,-2557.91,0.0002,10]
[422164795,1778641841000,-150.0,0.0002,10]
[422164781,1778641841000,-151.0,0.0002,2]
[422164790,1778641841000,-13080.79766381,0.0002,2]
[422164784,1778641841000,-152.0,0.0002,2]
[422164792,1778641841000,-3607.672545,0.0002,2]
[422164800,1778641841000,-156.0,0.0002,2]
[422164802,1778641841000,-185.72,0.00020168,2]
[422164804,1778641841000,-570.4396422,0.0002041,30]
[422164816,1778641841000,-4870.49,0.00020548,2]
[422164806,1778641841000,-1613.0,0.0002046,2]
[422164821,1778641841000,-4870.49,0.00020548,2]
[422164819,1778641841000,-4870.49,0.00020548,2]
[422164818,1778641841000,-4870.49,0.00020548,2]
[422164810,1778641841000,-509.80665889,0.00020526,2]
[422164814,1778641841000,-394.11776945,0.00020547,2]
[422164812,1778641841000,-300.0,0.00020547,2]
[422164815,1778641841000,-666.0,0.00020547,2]
[422164823,1778641841000,-4870.49,0.00020548,2]
[422164825,1778641841000,-4870.49,0.00020548,2]
[422164827,1778641841000,-4870.49,0.00020548,2]
[422164831,1778641841000,-4870.49,0.00020548,2]
[422164829,1778641841000,-4870.49,0.00020548,2]
[422164714,1778641841000,-500.0,0.00019178,2]
[422164797,1778641841000,-908.0,0.0002,2]
[422164779,1778641841000,-780.0,0.0002,2]
[422164817,1778641841000,-4870.49,0.00020548,2]
[422164766,1778641841000,-400.0,0.0002,2]
[422164710,1778641841000,-500.0,0.00019178,2]
[422164768,1778641841000,-1294.0,0.0002,2]
[422164730,1778641841000,-500.0,0.00019178,2]
[422164728,1778641841000,-500.0,0.00019178,2]
[422164708,1778641841000,-500.0,0.00019178,2]
[422164724,1778641841000,-500.0,0.00019178,2]
[422164716,1778641841000,-500.0,0.00019178,2]
[422164732,1778641841000,-500.0,0.00019178,2]
[422164749,1778641841000,-29999.99,0.00019339,2]
[422164747,1778641841000,-5089.69,0.00019339,2]
[422164755,1778641841000,-2943.519,0.00019695,2]
[422164751,1778641841000,-158.33,0.00019447,2]
[422164743,1778641841000,-2039.84,0.00019178,2]
[422164757,1778641841000,-418.677,0.00019695,2]
[422164745,1778641841000,-151.0,0.00019178,2]
[422164764,1778641841000,-191.0,0.0002,2]
[422164775,1778641841000,-154.0,0.0002,2]
[422164770,1778641841000,-1632.0,0.0002,2]
[422164773,1778641841000,-157.0,0.0002,2]
[422164761,1778641841000,-205.321051,0.00019734,2]
[422164759,1778641841000,-227.742258,0.00019698,2]
[422164777,1778641841000,-287.0,0.0002,2]
[422164739,1778641841000,-500.0,0.00019178,2]
[422164753,1778641841000,-2129.0,0.00019478,2]
[422164737,1778641841000,-500.0,0.00019178,2]
[422164741,1778641841000,-248.81588093,0.00019178,2]
[422164734,1778641841000,-500.0,0.00019178,2]
[422164913,1778641842000,-377.36580963,0.00021501,22]
[422164917,1778641842000,-151.80328487,0.00021501,22]
[422164915,1778641842000,-391.83394941,0.00021501,22]
[422164919,1778641842000,-154.80950792,0.00021501,22]
[422164907,1778641842000,-2212.09,0.00021273,2]
[422164909,1778641842000,-225.56710867,0.00021501,22]
[422164903,1778641842000,-1574.93,0.00021273,2]
[422164898,1778641842000,-3620.0,0.00021154,2]
[422164901,1778641842000,-309.26,0.00021267,2]
[422164900,1778641842000,-743.4,0.000212,2]
[422164896,1778641842000,-158.33,0.00021068,2]
[422164920,1778641842000,-404.46948156,0.00021788,24]
[422164905,1778641842000,-434.49,0.00021273,2]
[422164922,1778641842000,-259.361985,0.00021918,2]
[422164932,1778641842000,-1294.0,0.00022,2]
[422164934,1778641842000,-157.0,0.00022,2]
[422164930,1778641842000,-450.0,0.00022,2]
[422164938,1778641842000,-287.0,0.00022,2]
[422164926,1778641842000,-150.96594777,0.00021918,2]
[422164940,1778641842000,-151.0,0.00022,2]
[422164936,1778641842000,-154.0,0.00022,2]
[422164924,1778641842000,-5000.0,0.00021918,2]
[422164944,1778641842000,-160.0,0.00022,2]
[422164948,1778641842000,-243.5200928,0.0002211,2]
[422164928,1778641842000,-191.0,0.00022,2]
[422164946,1778641842000,-300.0,0.00022,2]
[422164952,1778641842000,-717.56824242,0.00022407,2]
[422164890,1778641842000,-152.0,0.00021,2]
[422164942,1778641842000,-164.09572338,0.00022,2]
[422164892,1778641842000,-164.23988985,0.00021,2]
[422164835,1778641842000,-4870.49,0.00020548,2]
[422164885,1778641842000,-287.0,0.00021,2]
[422164950,1778641842000,-185.72,0.00022185,2]
[422164837,1778641842000,-4870.49,0.00020548,2]
[422164834,1778641842000,-4870.49,0.00020548,2]
[422164841,1778641842000,-4870.49,0.00020548,2]
[422164839,1778641842000,-4870.49,0.00020548,2]
[422164845,1778641842000,-4870.49,0.00020548,2]
[422164843,1778641842000,-4870.49,0.00020548,2]
[422164857,1778641842000,-4870.49,0.00020548,2]
[422164847,1778641842000,-4870.49,0.00020548,2]
[422164859,1778641842000,-4870.49,0.00020548,2]
[422164860,1778641842000,-4870.49,0.00020548,2]
[422164862,1778641842000,-4870.49,0.00020548,2]
[422164851,1778641842000,-4870.49,0.00020548,2]
[422164894,1778641842000,-2557.9,0.00021,2]
[422164864,1778641842000,-2731.62,0.00020548,2]
[422164855,1778641842000,-4870.49,0.00020548,2]
[422164853,1778641842000,-4870.49,0.00020548,2]
[422164870,1778641842000,-209.248931,0.00020674,2]
[422164866,1778641842000,-191.565019,0.00020584,2]
[422164868,1778641842000,-160.0,0.00020674,2]
[422164884,1778641842000,-154.0,0.00021,2]
[422164882,1778641842000,-157.0,0.00021,2]
[422164872,1778641842000,-258.497862,0.00020674,2]
[422164888,1778641842000,-151.0,0.00021,2]
[422164878,1778641842000,-191.0,0.00021,2]
[422164880,1778641842000,-1294.0,0.00021,2]
[422164874,1778641842000,-6453.0,0.00020761,2]
[422164876,1778641842000,-153.39,0.00020808,2]
[422164849,1778641842000,-4870.49,0.00020548,2]
[422164954,1778641842000,-717.5682424,0.00022407,2]
[422164911,1778641842000,-350.37144988,0.00021501,22]
[422164956,1778641842000,-717.5682424,0.00022407,2]
[422165040,1778641842000,-3162.0,0.00024612,2]
[422165042,1778641842000,-187.15,0.00024658,2]
[422165027,1778641842000,-191.0,0.00024,2]
[422165041,1778641842000,-1000.0,0.00024658,2]
[422165029,1778641842000,-500.0,0.00024,2]
[422165031,1778641842000,-1294.0,0.00024,2]
[422165032,1778641842000,-172.22749649,0.00024,2]
[422165034,1778641842000,-151.0,0.00024,2]
[422165033,1778641842000,-287.0,0.00024,2]
[422165036,1778641842000,-185.72,0.00024202,2]
[422165035,1778641842000,-5895.23,0.00024174,2]
[422165037,1778641842000,-1152.82969983,0.0002421,2]
[422165044,1778641842000,-211.45,0.00024658,2]
[422165038,1778641842000,-158.33,0.00024309,2]
[422165043,1778641842000,-151.0,0.00024658,2]
[422165049,1778641842000,-500.0,0.00024999,2]
[422165046,1778641842000,-743.4,0.000247,7]
[422165047,1778641842000,-211.45,0.00024802,7]
[422165045,1778641842000,-211.39,0.00024658,2]
[422165048,1778641842000,-211.39,0.00024802,7]
[422165050,1778641842000,-203.73400186,0.00025,2]
[422165053,1778641842000,-155.82595511,0.00025,2]
[422165051,1778641842000,-1301.04373929,0.00025,2]
[422165052,1778641842000,-296.30366588,0.00025,2]
[422165056,1778641842000,-496.66562829,0.00025,2]
[422165059,1778641842000,-169.42264821,0.00025,2]
[422165055,1778641842000,-998.11480699,0.00025,2]
[422164959,1778641842000,-2258.0,0.0002244,2]
[422165054,1778641842000,-173.17586745,0.00025,60]
[422165039,1778641842000,-309.26,0.00024533,2]
[422165057,1778641842000,-7218.20171558,0.00025,2]
[422165021,1778641842000,-151.0,0.00023288,2]
[422164967,1778641842000,-150.317,0.00022536,2]
[422164965,1778641842000,-243.468,0.00022536,2]
[422164962,1778641842000,-1593.08,0.00022466,2]
[422164970,1778641842000,-150.0,0.00022536,2]
[422164981,1778641842000,-3541.0,0.00022536,2]
[422164986,1778641842000,-1269.0,0.00022536,2]
[422164997,1778641842000,-582.06260498,0.00022706,2]
[422164976,1778641842000,-1358.571,0.00022536,2]
[422165015,1778641842000,-287.0,0.00023,2]
[422164994,1778641842000,-417.0,0.00022695,2]
[422164972,1778641842000,-150.272,0.00022536,2]
[422164990,1778641842000,-3654.6003323,0.000226,2]
[422164984,1778641842000,-151.154,0.00022536,2]
[422164992,1778641842000,-158.33,0.00022688,2]
[422164988,1778641842000,-1226.944,0.00022536,2]
[422164973,1778641842000,-926.0,0.00022536,2]
[422165023,1778641842000,-151.0,0.00023288,2]
[422164999,1778641842000,-530.47727054,0.0002271,2]
[422165011,1778641842000,-166.30535348,0.00023,2]
[422165005,1778641842000,-1405.0,0.00022983,5]
[422165025,1778641842000,-151.0,0.00023288,2]
[422165013,1778641842000,-154.0,0.00023,2]
[422165007,1778641842000,-191.0,0.00023,2]
[422165001,1778641842000,-6593.0,0.00022837,2]
[422165002,1778641842000,-257.0,0.00022972,2]
[422165058,1778641842000,-2228.09656728,0.00025,2]
[422165009,1778641842000,-1294.0,0.00023,2]
[422165017,1778641842000,-151.0,0.00023,2]
[422164980,1778641842000,-625.0,0.00022536,2]
[422165019,1778641842000,-858.50842233,0.00023,2]
[422165115,1778641843000,-981.63262282,0.00026154,2]
[422165109,1778641843000,-981.63262282,0.00026032,2]
[422165111,1778641843000,-496.38,0.0002609,2]
[422165112,1778641843000,-309.0,0.00026113,2]
[422165113,1778641843000,-155.91835003,0.00026119,39]
[422165099,1778641843000,-434.49,0.00025786,2]
[422165118,1778641843000,-496.38,0.00026256,2]
[422165107,1778641843000,-496.38,0.00025979,2]
[422165119,1778641843000,-496.38,0.00026311,2]
[422165103,1778641843000,-981.63262282,0.00025824,2]
[422165100,1778641843000,-2212.09,0.00025786,2]
[422165116,1778641843000,-496.38,0.00026201,2]
[422165117,1778641843000,-981.63262282,0.00026211,2]
[422165123,1778641843000,-496.38,0.00026477,2]
[422165114,1778641843000,-496.38,0.00026145,2]
[422165108,1778641843000,-550.0,0.00026,2]
[422165121,1778641843000,-496.38,0.00026422,2]
[422165131,1778641843000,-981.63262282,0.00026544,2]
[422165122,1778641843000,-981.63262282,0.00026451,2]
[422165126,1778641843000,-496.38,0.00026533,2]
[422165132,1778641843000,-981.63262282,0.00026581,2]
[422165133,1778641843000,-496.38,0.00026588,2]
[422165120,1778641843000,-496.38,0.00026367,2]
[422165128,1778641843000,-981.63262282,0.00026538,2]
[422165125,1778641843000,-981.63262282,0.00026486,2]
[422165130,1778641843000,-981.63262282,0.00026544,2]
[422165098,1778641843000,-1574.93,0.00025786,2]
[422165110,1778641843000,-496.38,0.00026034,2]
[422165102,1778641843000,-496.38,0.00025813,2]
[422165079,1778641843000,-496.38,0.00025536,2]
[422165101,1778641843000,-5895.23,0.00025786,2]
[422165140,1778641843000,-400.0,0.00026839,2]
[422165066,1778641843000,-981.63262282,0.00025103,2]
[422165068,1778641843000,-207.82,0.00025143,2]
[422165070,1778641843000,-981.63262282,0.00025178,2]
[422165071,1778641843000,-153.39,0.00025247,2]
[422165060,1778641843000,-4851.04467009,0.00025,2]
[422165064,1778641843000,-1585.04196744,0.00025,2]
[422165061,1778641843000,-151.64888359,0.00025,2]
[422165062,1778641843000,-150.0,0.00025,2]
[422165077,1778641843000,-53956.23857637,0.000255,2]
[422165090,1778641843000,-1223.0,0.00025536,2]
[422165085,1778641843000,-625.0,0.00025536,2]
[422165087,1778641843000,-3541.0,0.00025536,2]
[422165083,1778641843000,-1353.0,0.00025536,2]
[422165073,1778641843000,-496.38,0.0002548,2]
[422165089,1778641843000,-1269.0,0.00025536,2]
[422165081,1778641843000,-926.0,0.00025536,2]
[422165091,1778641843000,-496.38,0.00025591,2]
[422165074,1778641843000,-687.74970495,0.00025499,2]
[422165092,1778641843000,-981.63262282,0.00025643,2]
[422165104,1778641843000,-981.63262282,0.00025842,2]
[422165094,1778641843000,-417.0,0.00025695,2]
[422165105,1778641843000,-496.38,0.00025868,2]
[422165093,1778641843000,-496.38,0.00025647,2]
[422165106,1778641843000,-496.38,0.00025924,2]
[422165095,1778641843000,-496.38,0.00025702,2]
[422165096,1778641843000,-981.63262282,0.0002571,2]
[422165097,1778641843000,-496.38,0.00025757,2]